bitfinex/quotes_ETHUSD_20250507
["timestamp","ask_amount","ask_price","bid_price","bid_amount"]
[1746583071110,3.0,1834.1,1833.8,5.45311053]
[1746583072312,3.0,1834.1,1833.7,14.46228047]
[1746583072518,3.0,1834.1,1833.8,5.45314932]
[1746583073199,8.45232892,1834.1,1833.7,14.46235014]
[1746583073400,8.45226699,1834.1,1833.7,14.46235014]
[1746583073606,3.0,1834.1,1833.8,5.45314638]
[1746583073808,8.75262481,1834.0,1833.3,5.45450464]
[1746583074003,3.0,1833.7,1833.4,5.45423781]
[1746583074201,5.4530143,1833.9,1833.2,6.00494217]
[1746583074407,3.0,1833.9,1833.6,5.45370806]
[1746583075005,3.5395,1834.4,1833.5,0.55]
[1746583075229,3.5395,1834.4,1833.8,5.45292103]
[1746583075230,3.0,1834.1,1833.8,5.45292103]
[1746583075714,3.0,1834.1,1833.8,5.45315105]
[1746583075907,3.0,1834.1,1833.9,5.45274382]
[1746583076107,10.9031331,1834.4,1834.0,5.45241952]
[1746583076304,5.45152082,1834.4,1834.0,5.45241952]
[1746583076516,8.45152082,1834.4,1834.0,5.45241952]
[1746583076729,5.98998424,1834.7,1834.0,1.09051633]
[1746583077030,5.45109315,1834.5,1834.0,5.45238254]
[1746583077234,3.0,1834.3,1834.0,5.45238254]
[1746583077591,8.45175984,1834.3,1833.9,6.00273691]
[1746583077813,3.0,1834.3,1833.9,11.4552729]
[1746583078021,3.0,1834.3,1834.0,5.45237448]
[1746583078327,2.99012375,1834.3,1834.1,5.45226487]
[1746583078526,5.45095847,1834.6,1834.1,5.45215776]
[1746583078690,5.45127376,1834.5,1834.1,5.45215776]
[1746583079330,5.4515252,1834.4,1834.0,5.45240279]
[1746583079626,5.99013721,1834.7,1834.1,5.45215779]
[1746583079919,5.45118685,1834.5,1834.1,5.45215779]
[1746583080123,5.45141716,1834.4,1834.0,5.45243977]
[1746583080320,3.0,1834.4,1834.1,5.45207634]
[1746583080540,3.0,1834.5,1834.1,5.50657726]
[1746583080691,3.0,1834.5,1834.2,5.45184351]
[1746583080891,3.0,1834.5,1834.2,5.45191437]
[1746583081302,3.0,1834.5,1834.2,5.45177301]
[1746583081536,5.45086462,1834.6,1834.2,5.45177301]
[1746583081820,3.0,1834.6,1834.3,6.2155966]
[1746583082024,4.4782874,1834.8,1834.4,6.00137374]
[1746583082193,5.45061802,1834.7,1834.3,6.21564909]
[1746583082611,5.45062189,1834.7,1834.3,6.21555419]
[1746583083212,3.0,1834.7,1834.3,6.21555419]
[1746583083415,4.4782874,1835.0,1834.4,0.55]
[1746583083611,9.92805503,1835.0,1834.6,5.45070192]
[1746583083816,0.3001636,1834.9,1834.6,5.45056445]
[1746583084015,0.3001636,1834.9,1834.7,5.45027475]
[1746583084231,0.3001636,1834.9,1834.6,5.45063018]
[1746583084598,5.44965938,1835.0,1834.6,5.45063018]
[1746583084799,5.44965938,1835.0,1834.6,5.45059807]
[1746583085039,10.89886849,1835.1,1834.7,5.45042877]
[1746583085337,5.44931135,1835.1,1834.7,5.45042877]
[1746583085832,10.89885659,1835.1,1834.7,5.45027558]
[1746583086027,5.44931135,1835.1,1834.7,13.99227558]
[1746583086227,3.40543638,1835.2,1834.7,8.542]
[1746583086428,5.44974564,1835.0,1834.7,8.542]
[1746583086732,5.45043014,1834.8,1834.5,13.97604015]
[1746583087031,5.45028374,1834.8,1834.5,13.9760565]
[1746583087238,3.0,1834.9,1834.6,5.45072906]
[1746583087408,3.0,1834.9,1834.6,5.45059237]
[1746583087610,3.0,1834.9,1834.5,14.16290617]
[1746583087611,8.45003234,1834.9,1834.5,14.16293565]
[1746583088112,0.30070291,1834.8,1834.5,19.61380491]
[1746583088505,0.30070291,1834.8,1834.5,14.16286926]
[1746583088706,0.30070291,1834.8,1834.5,14.16284663]
[1746583088901,0.30070291,1834.8,1834.5,14.1629005]
[1746583089102,8.45003234,1834.9,1834.5,19.61376667]
[1746583089341,5.45028502,1834.8,1834.5,8.712]
[1746583089505,4.38997577,1834.9,1834.5,8.712]
[1746583089838,4.38997577,1834.9,1834.6,5.45075836]
[1746583090036,3.0,1834.9,1834.6,5.45056458]
[1746583090219,3.0,1834.9,1834.8,5.4501853]
[1746583090538,7.1879294,1835.2,1834.8,5.4501853]
[1746583090723,3.0,1835.1,1834.8,5.4501853]
[1746583090910,5.44884464,1835.3,1834.9,5.44987334]
[1746583090911,5.44887746,1835.3,1834.9,5.44987334]
[1746583091116,5.44945121,1835.1,1834.7,5.45031496]
[1746583091517,8.44945121,1835.1,1834.7,5.45031496]
[1746583091720,0.30071383,1835.0,1834.7,0.55]
[1746583091913,0.30071383,1835.0,1834.7,5.45038382]
[1746583092226,0.30071383,1835.0,1834.7,5.45026182]
[1746583092425,0.30071383,1835.0,1834.8,5.45006902]
[1746583092606,3.0,1835.1,1834.8,13.87295828]
[1746583092803,3.0,1835.1,1834.9,5.44985412]
[1746583093240,3.0,1835.1,1834.9,5.44968092]
[1746583093442,3.0,1835.1,1834.9,5.44967917]
[1746583093599,1.09074673,1835.4,1835.0,5.44959128]
[1746583093802,4.74464409,1835.4,1835.1,5.44926439]
[1746583094042,0.30090365,1835.3,1835.1,5.44926439]
[1746583094805,0.30090365,1835.3,1835.2,5.44899738]
[1746583095230,1.09074673,1835.4,1835.2,5.44899738]
[1746583095431,1.09074673,1835.4,1835.1,5.44926439]
[1746583095849,1.09074673,1835.4,1835.1,5.44908616]
[1746583096050,1.09074673,1835.4,1835.1,5.44906419]
[1746583096720,1.09074673,1835.4,1835.2,5.44898232]
[1746583096907,1.09074673,1835.4,1835.1,5.44906419]
[1746583097756,0.30068566,1835.3,1835.1,5.44906419]
[1746583098148,0.30068566,1835.3,1835.0,5.4494583]
[1746583098314,0.30068566,1835.3,1835.0,19.14685032]
[1746583098515,0.30068566,1835.3,1835.1,5.44925338]
[1746583098713,6.53928087,1835.4,1835.0,8.248]
[1746583098917,0.65392809,1835.3,1835.0,19.14674999]
[1746583099150,1.09074673,1835.4,1835.1,5.44926974]
[1746583099349,1.09074673,1835.4,1835.0,13.69741519]
[1746583099533,1.09074673,1835.4,1835.2,5.44886447]
[1746583100111,1.09074673,1835.4,1835.2,5.44890021]
[1746583100518,1.09074673,1835.4,1835.3,5.44870048]
[1746583101642,1.39147323,1835.4,1835.2,5.50328701]
[1746583101846,1.39147323,1835.4,1835.2,5.44880306]
[1746583102046,1.09074673,1835.4,1835.2,5.44880306]
[1746583102784,1.09074673,1835.4,1835.3,5.44870048]
[1746583103621,1.09074673,1835.4,1835.3,5.5031817]
[1746583103839,1.09074673,1835.4,1835.2,5.44882657]
[1746583104658,1.09074673,1835.4,1835.2,10.89763607]
[1746583104871,0.30120476,1835.3,1835.2,5.4488095]
[1746583105351,0.30120476,1835.3,1835.2,21.6578095]
[1746583105555,0.30120476,1835.3,1834.9,8.8748]
[1746583105762,0.98526768,1835.3,1834.9,14.32453583]
[1746583105924,0.30120476,1835.3,1835.1,5.44928826]
[1746583106337,0.30120476,1835.3,1835.0,5.44939825]
[1746583106540,0.30120476,1835.2,1835.0,10.89876507]
[1746583106748,0.30120476,1835.2,1835.1,5.44929431]
[1746583107246,0.30120476,1835.2,1835.0,5.44936682]
[1746583107442,0.30120476,1835.3,1835.1,5.44929431]
[1746583108379,0.30120476,1835.2,1835.1,5.44929431]
[1746583109176,0.30120476,1835.2,1835.1,5.99929431]
[1746583109468,0.30120476,1835.2,1835.1,14.17578189]
[1746583109673,0.30120476,1835.2,1835.1,14.12129431]
[1746583109892,0.30120476,1835.3,1835.2,5.44899738]
[1746583110048,0.30120476,1835.3,1835.2,5.99899738]
[1746583110636,0.30120476,1835.3,1835.2,6.82519738]
[1746583110848,1.09074673,1835.4,1835.3,5.44870048]
[1746583111087,1.09074673,1835.4,1835.3,5.99870048]
[1746583111238,1.09074673,1835.4,1835.3,7.22609027]
[1746583111983,1.09074673,1835.4,1835.3,8.02459027]
[1746583111984,0.61354503,1835.4,1835.3,8.02459027]
[1746583112279,3.62556259,1836.1,1836.0,5.44662309]
[1746583112573,3.62556259,1836.1,1835.9,8.122]
[1746583112784,0.30220491,1836.0,1835.9,13.56886423]
[1746583113271,0.30220491,1836.0,1835.9,8.122]
[1746583113689,0.30220491,1836.0,1835.9,13.56891976]
[1746583114784,0.30220491,1836.0,1835.9,14.11891976]
[1746583115868,3.0,1836.3,1836.0,5.44650736]
[1746583116193,5.98464222,1836.5,1836.1,5.44618934]
[1746583116492,0.30152085,1836.2,1836.1,5.44618934]
[1746583117060,0.5395,1836.5,1836.1,5.44618934]
[1746583117263,1.13795391,1836.5,1836.1,5.44632383]
[1746583117481,3.0,1836.4,1836.1,5.44632383]
[1746583117995,1.13795391,1836.5,1836.1,5.44632383]
[1746583118285,3.30141189,1836.4,1836.1,5.44610041]
[1746583118491,3.30141189,1836.4,1836.1,7.843]
[1746583118686,3.30141189,1836.4,1836.1,13.28930965]
[1746583119079,0.30141189,1836.3,1836.1,13.28930965]
[1746583119996,3.0,1836.4,1836.1,13.28830965]
[1746583120154,3.0,1836.4,1836.1,7.842]
[1746583120492,8.4454757,1836.4,1836.1,7.842]
[1746583121288,0.95525521,1836.5,1836.1,13.2882387]
[1746583121608,0.3013096,1836.3,1836.1,13.28813953]
[1746583121813,0.3013096,1836.3,1836.2,5.44602984]
[1746583122592,0.2904096,1836.3,1836.2,5.50048367]
[1746583122820,0.2904096,1836.3,1836.2,7.32490777]
[1746583122980,0.2904096,1836.3,1836.2,7.87490777]
[1746583123176,0.41575521,1836.5,1836.4,5.44543672]
[1746583123376,3.0,1836.9,1836.5,5.44495674]
[1746583123687,0.41736868,1836.9,1836.6,5.4446871]
[1746583123895,0.5395,1837.0,1836.6,5.4446871]
[1746583124112,7.02837326,1837.0,1836.6,7.842]
[1746583124279,3.0,1836.9,1836.6,7.842]
[1746583124603,3.0,1836.9,1836.6,13.28670953]
[1746583124906,7.02837412,1837.0,1836.6,13.28670953]
[1746583125441,3.0,1836.9,1836.6,13.28670953]
[1746583125899,3.0,1836.9,1836.6,18.73137249]
[1746583126104,3.0,1836.9,1836.6,13.28666296]
[1746583126318,3.0,1836.9,1836.6,18.73129337]
[1746583126519,3.0,1836.9,1836.7,5.44453142]
[1746583126716,3.40158053,1836.9,1836.7,5.44453142]
[1746583126922,3.40158053,1836.9,1836.6,13.28667156]
[1746583127622,3.40158053,1836.9,1836.6,13.28681641]
[1746583128228,8.44454728,1836.7,1836.6,7.842]
[1746583128532,8.44454728,1836.7,1836.3,5.44570858]
[1746583128834,8.44454728,1836.7,1836.2,13.28580744]
[1746583129148,5.44497061,1836.6,1836.2,13.28580744]
[1746583129833,5.44575588,1836.3,1835.9,5.44681228]
[1746583130043,8.98474892,1836.5,1836.1,5.44612502]
[1746583130215,3.5395,1836.5,1836.2,5.44589627]
[1746583130536,13.21952754,1836.8,1836.4,5.44540427]
[1746583130923,13.21952754,1836.8,1836.4,5.44521697]
[1746583131312,3.0,1836.8,1836.5,5.44501439]
[1746583131518,5.84553582,1836.9,1836.5,5.44501439]
[1746583131902,3.0,1836.8,1836.5,5.44501439]
[1746583132100,3.0,1836.8,1836.5,10.88998229]
[1746583132329,5.84553582,1836.9,1836.6,5.44483393]
[1746583132633,8.84569621,1836.9,1836.5,5.44493329]
[1746583133230,5.44429224,1836.8,1836.5,0.55]
[1746583133436,8.84568179,1836.9,1836.5,5.99513528]
[1746583133653,5.44425549,1836.8,1836.5,5.99513528]
[1746583133944,8.84568179,1836.9,1836.5,5.99513528]
[1746583134454,3.40158053,1836.9,1836.5,5.99513941]
[1746583134648,0.30080815,1836.8,1836.5,5.99513941]
[1746583134839,5.74505976,1836.8,1836.4,7.39990279]
[1746583135040,14.28987547,1836.9,1836.5,5.44509967]
[1746583135350,3.40158053,1836.9,1836.5,5.44495193]
[1746583135517,3.40158053,1836.9,1836.6,5.44484073]
[1746583135714,0.30105649,1836.8,1836.6,5.44484073]
[1746583135915,3.0,1836.7,1836.3,16.1942]
[1746583136139,0.30105649,1836.6,1836.3,21.63979291]
[1746583136753,5.44447156,1836.8,1836.3,18.90276603]
[1746583136953,0.30109512,1836.7,1836.5,5.44511108]
[1746583137448,8.8457276,1836.9,1836.5,5.44511108]
[1746583137644,8.44435197,1836.8,1836.4,5.4451995]
[1746583137848,3.40158053,1836.9,1836.6,5.44475118]
[1746583138152,0.40158053,1836.9,1836.7,5.44451871]
[1746583138337,8.44367291,1837.0,1836.7,5.44451871]
[1746583138912,3.4186906,1837.0,1836.7,5.44451871]
[1746583139111,0.30149249,1836.9,1836.7,5.44451871]
[1746583139314,0.30149249,1836.9,1836.6,5.44468645]
[1746583139519,0.30149249,1836.8,1836.6,6.64310362]
[1746583139720,0.30149249,1836.9,1836.8,5.44425087]
[1746583140060,0.30149249,1837.1,1836.8,13.00825087]
[1746583140631,0.30149249,1837.1,1836.8,7.564]
[1746583140832,0.30149249,1837.0,1836.8,7.564]
[1746583141256,5.74517062,1837.0,1836.8,7.564]
[1746583141866,0.30149249,1837.0,1836.8,7.564]
[1746583142565,0.30197027,1836.9,1836.8,7.564]
[1746583144263,0.30197027,1836.9,1836.8,13.00825087]
[1746583147475,0.30203252,1836.9,1836.8,13.00825087]
[1746583148167,0.30203252,1836.9,1836.8,13.55825087]
[1746583149043,0.30203252,1836.9,1836.8,15.53387811]
[1746583150178,0.30203252,1836.9,1836.8,7.564]
[1746583151347,0.30203252,1836.9,1836.8,13.55825087]
[1746583151899,0.30203252,1836.9,1836.8,8.114]
[1746583152048,5.745987,1836.9,1836.8,7.564]
[1746583152486,10.88938994,1836.7,1836.0,7.274]
[1746583152683,8.44439452,1836.8,1836.4,5.44541166]
[1746583152883,0.30203252,1836.7,1836.3,0.7856]
[1746583153086,0.30203252,1836.7,1836.5,5.44500692]
[1746583153382,0.30203252,1836.7,1836.6,5.99484373]
[1746583153681,0.30203252,1837.0,1836.8,5.44421758]
[1746583153981,0.30203252,1837.0,1836.8,13.53628605]
[1746583154276,0.30203252,1837.0,1836.9,5.99395448]
[1746583154484,0.30203252,1837.0,1836.9,13.25395448]
[1746583154685,5.74490003,1837.3,1837.0,0.55]
[1746583154891,5.74490003,1837.3,1837.0,5.99365002]
[1746583155252,0.30203252,1837.3,1837.0,5.9936254]
[1746583155549,0.30203252,1837.2,1837.0,5.9936254]
[1746583156483,0.30203252,1837.1,1837.0,5.9936254]
[1746583157185,0.30203252,1837.1,1836.9,12.70378397]
[1746583157495,10.01394095,1837.4,1836.9,18.14750644]
[1746583157496,5.74482443,1837.3,1836.9,18.14750644]
[1746583158297,0.30203252,1837.2,1837.0,5.44365045]
[1746583159103,0.30203252,1837.3,1837.0,5.44365045]
[1746583159594,0.30203252,1837.3,1837.1,5.44329542]
[1746583160173,0.30203252,1837.3,1837.1,5.44322093]
[1746583160374,0.30203252,1837.3,1837.2,5.44306553]
[1746583161159,0.30203252,1837.3,1837.1,5.98754302]
[1746583161381,0.30203252,1837.3,1837.1,5.44318514]
[1746583161699,0.30203252,1837.3,1837.2,5.44306553]
[1746583161989,0.30203252,1837.4,1837.3,5.44276928]
[1746583162171,0.30203252,1837.4,1837.3,12.71576928]
[1746583163323,0.30203252,1837.6,1837.3,12.71576928]
[1746583164110,0.30203252,1837.5,1837.3,12.71576928]
[1746583164405,5.74421867,1837.5,1837.3,7.273]
[1746583164623,5.44247305,1837.4,1837.3,7.273]
[1746583164778,5.74450557,1837.4,1837.3,7.273]
[1746583167447,5.44423264,1836.9,1836.5,5.44501555]
[1746583167744,8.44355753,1837.1,1836.6,5.44464089]
[1746583167898,8.44355753,1837.1,1836.7,5.4445272]
[1746583168103,1.34676621,1837.3,1836.8,5.49861707]
[1746583168104,0.30203252,1837.0,1836.8,5.49861707]
[1746583168434,0.30203252,1837.0,1836.8,18.98627455]
[1746583168741,0.30203252,1837.0,1836.8,18.93183936]
[1746583168941,0.30203252,1837.0,1836.9,5.44395448]
[1746583169238,0.30203252,1837.2,1837.0,5.4435694]
[1746583169657,0.30203252,1837.2,1837.1,6.04778688]
[1746583169805,0.30203252,1837.4,1837.2,5.44305978]
[1746583170235,0.30203252,1837.4,1837.2,12.54005978]
[1746583170646,0.30203252,1837.3,1837.2,12.54005978]
[1746583170857,0.30203252,1837.3,1837.2,14.39340194]
[1746583171154,0.30203252,1837.3,1837.2,8.95034216]
[1746583171356,0.30203252,1837.3,1837.2,7.097]
[1746583171545,0.30203252,1837.4,1837.3,0.55]
[1746583172971,0.30203252,1837.4,1837.0,5.44353138]
[1746583172972,5.74450557,1837.4,1837.0,5.44353138]
[1746583173121,5.74450557,1837.4,1837.1,7.61]
[1746583173321,0.30203252,1837.4,1837.1,13.0532819]
[1746583173636,0.30203252,1837.3,1837.1,13.0532819]
[1746583173852,0.30203252,1837.3,1837.1,13.05329045]
[1746583174156,0.30203252,1837.2,1837.1,7.61]
[1746583174621,4.74451362,1837.4,1837.1,7.61]
[1746583175142,5.85433341,1837.5,1837.1,13.05334146]
[1746583175556,3.62556259,1837.7,1837.4,0.55]
[1746583175857,3.62556259,1837.7,1837.4,5.99228364]
[1746583176046,6.62556259,1837.8,1837.4,5.99228364]
[1746583176551,12.06688912,1837.8,1837.4,5.99228364]
[1746583177055,5.44179091,1837.7,1837.4,0.55]
[1746583177856,3.0,1837.6,1837.4,0.55]
[1746583178288,8.44194872,1837.6,1837.4,0.55]
[1746583178636,0.8850474,1837.6,1837.3,7.272]
[1746583178842,3.0,1837.6,1837.3,12.71466062]
[1746583179057,3.0,1837.6,1837.3,12.71462051]
[1746583179953,3.0,1837.6,1837.4,0.55]
[1746583180485,3.0,1837.6,1837.4,5.99240942]
[1746583180660,3.0,1837.6,1837.4,0.55]
[1746583181182,8.44201782,1837.6,1837.4,0.55]
[1746583181985,3.0,1837.6,1837.4,0.55]
[1746583183648,3.0,1837.6,1837.4,5.99246643]
[1746583184092,5.44117232,1837.9,1837.6,0.55]
[1746583184276,3.0,1837.8,1837.6,0.55]
[1746583184471,3.40807957,1837.8,1837.6,0.55]
[1746583184788,8.84937496,1837.8,1837.6,0.55]
[1746583184987,11.13357371,1837.8,1837.3,7.272]
[1746583185160,5.4417608,1837.7,1837.3,19.63062277]
[1746583186501,5.4417608,1837.7,1837.3,19.63063365]
[1746583186905,5.4418977,1837.6,1837.3,19.63063365]
[1746583187197,5.4417608,1837.7,1837.3,19.63063365]
[1746583187510,0.3025172,1837.6,1837.3,25.07327006]
[1746583187682,0.3025172,1837.6,1837.3,22.21640066]
[1746583188193,0.3025172,1837.5,1837.3,22.21631153]
[1746583189073,0.3025172,1837.5,1837.3,14.135]
[1746583189279,0.3025172,1837.4,1837.3,20.1277546]
[1746583190104,0.3025172,1837.6,1837.4,5.99247086]
[1746583190768,0.3025172,1837.6,1837.4,5.99230978]
[1746583190969,0.3025172,1837.5,1837.4,5.99230978]
[1746583191183,0.3025172,1837.5,1837.4,8.54930532]
[1746583191595,0.3025172,1837.5,1837.4,3.10699554]
[1746583191981,8.56840868,1837.5,1837.3,7.272]
[1746583192670,0.3025172,1837.4,1837.3,7.272]
[1746583193005,8.74499025,1837.4,1837.3,7.272]
[1746583194313,8.98464021,1836.5,1835.6,7.782]
[1746583194471,11.2687625,1836.5,1835.8,10.11128526]
[1746583194675,11.2687625,1836.5,1835.8,10.1113634]
[1746583195102,11.5712797,1836.5,1835.8,10.66126543]
[1746583195413,3.8420172,1836.5,1836.1,5.44606769]
[1746583195625,11.5712797,1836.5,1835.9,20.20655075]
[1746583195814,9.28715741,1836.5,1835.9,6.25754484]
[1746583196022,8.44573326,1836.3,1836.2,3.64324359]
[1746583196628,3.3025172,1836.3,1836.2,3.64324359]
[1746583196990,8.74825046,1836.3,1836.2,3.64324359]
[1746583197530,3.3025172,1836.3,1836.2,3.64324359]
[1746583198735,3.40266726,1836.3,1836.2,3.64324359]
[1746583199242,3.40266726,1836.3,1835.0,5.45439136]
[1746583199243,5.4482378,1835.5,1835.0,5.45439136]
[1746583199440,5.44847799,1835.4,1835.0,0.005]
[1746583199739,8.44884435,1835.3,1835.0,0.005]
[1746583200309,3.0,1835.3,1835.0,0.005]
[1746583200498,3.0,1835.6,1835.1,5.44929431]
[1746583200712,3.0,1835.7,1835.5,0.55]
[1746583200912,3.0,1835.9,1835.5,0.55]
[1746583201109,5.44651157,1836.1,1835.6,5.50216315]
[1746583201315,0.5395,1836.2,1835.9,5.44688771]
[1746583201512,0.5395,1836.2,1835.9,0.7965]
[1746583201513,5.44606083,1836.2,1835.9,0.7965]
[1746583201749,3.0,1836.1,1835.9,0.7965]
[1746583202155,5.4473643,1835.8,1835.3,0.7965]
[1746583202358,5.44727541,1835.8,1835.4,5.99828534]
[1746583202530,5.44727541,1835.8,1835.4,7.22261916]
[1746583203024,3.0,1835.7,1835.4,0.55]
[1746583203245,5.44766737,1835.7,1835.3,6.24514754]
[1746583203445,8.44766737,1835.7,1835.3,6.24514754]
[1746583203747,3.0,1835.7,1835.4,5.44826295]
[1746583203917,3.0,1835.7,1835.3,6.24502704]
[1746583204120,8.44759186,1835.7,1835.3,1.68968752]
[1746583204313,5.44800929,1835.6,1835.3,0.55]
[1746583204543,3.0,1835.5,1835.1,26.631]
[1746583204747,5.44856855,1835.4,1835.1,26.631]
[1746583205253,5.44912429,1835.2,1835.0,0.005]
[1746583205546,0.41575757,1835.2,1835.0,0.005]
[1746583205743,5.98830564,1835.3,1835.0,0.005]
[1746583205908,5.98830564,1835.3,1835.0,5.50905452]
[1746583205909,3.0,1835.3,1835.0,5.50905452]
[1746583206116,3.0,1835.6,1835.1,5.99915633]
[1746583206353,8.44785813,1835.6,1835.2,12.45786454]
[1746583206517,8.447818,1835.6,1835.2,12.45786454]
[1746583206719,5.98722776,1835.7,1835.3,0.55]
[1746583207021,5.98717939,1835.7,1835.3,5.99868268]
[1746583207240,0.5395,1835.7,1835.3,0.55]
[1746583207447,0.5395,1835.7,1835.3,5.99847197]
[1746583207653,5.98663961,1835.9,1835.5,6.21865667]
[1746583207868,5.4467357,1836.0,1835.6,5.44778403]
[1746583208217,5.98602773,1836.1,1835.7,5.44749052]
[1746583208417,5.44667971,1836.0,1835.6,5.99767136]
[1746583208923,3.0,1835.9,1835.6,5.99761759]
[1746583209252,8.98601009,1836.1,1835.7,5.44750949]
[1746583209567,5.44849071,1835.4,1835.0,5.45442155]
[1746583209712,5.44873143,1835.3,1835.0,0.005]
[1746583210548,5.44849071,1835.4,1835.0,5.45454948]
[1746583210856,5.44849071,1835.4,1835.0,5.45438819]
[1746583211654,5.85534914,1835.4,1835.0,5.45438819]
[1746583212358,10.2,1836.0,1835.1,0.55]
[1746583212565,3.0,1835.5,1835.2,12.52899738]
[1746583212718,5.98634157,1836.0,1835.3,1.3097]
[1746583213030,7.3131325,1836.1,1835.7,5.44750173]
[1746583213225,0.73131325,1836.0,1835.7,5.4475047]
[1746583213433,0.5395,1836.4,1836.0,5.44639402]
[1746583213617,0.5395,1836.4,1836.1,5.44627889]
[1746583213830,5.98415324,1836.7,1835.9,5.44691976]
[1746583214022,6.40052699,1836.7,1836.3,5.44562016]
[1746583214241,6.40052699,1836.7,1836.4,5.44540767]
[1746583214242,0.95576887,1836.7,1836.4,5.44540767]
[1746583214449,3.62556259,1836.6,1836.3,12.52551016]
[1746583214660,3.0,1836.5,1836.3,7.08]
[1746583214861,9.07041484,1836.6,1836.3,7.08]
[1746583215124,3.0,1836.5,1836.3,7.08]
[1746583215418,5.44543672,1836.4,1836.3,7.08]
[1746583215669,14.42642634,1836.5,1835.9,7.8403]
[1746583215873,10.19187108,1836.5,1836.1,5.44623147]
[1746583216326,10.19187108,1836.5,1836.0,5.44637688]
[1746583216519,5.44556181,1836.4,1836.0,5.44637688]
[1746583216681,3.0,1836.3,1835.9,20.35402305]
[1746583217226,8.44662309,1836.0,1835.9,14.146]
[1746583217722,3.0,1836.0,1835.9,14.146]
[1746583218380,8.44662309,1836.0,1835.9,14.146]
[1746583218581,5.44736991,1835.8,1835.5,7.079]
[1746583218812,5.44691976,1835.9,1835.5,12.52703039]
[1746583219017,3.0,1835.9,1835.5,7.079]
[1746583219216,3.0,1835.8,1835.0,0.005]
[1746583219423,3.0,1835.5,1835.2,5.44894581]
[1746583219828,3.0,1835.5,1835.2,5.44876066]
[1746583220000,8.4481094,1835.5,1835.1,12.52805631]
[1746583220200,3.0,1835.8,1835.1,12.52818126]
[1746583220508,3.0,1835.5,1835.2,5.44889066]
[1746583221115,3.0,1835.4,1835.1,7.079]
[1746583221324,5.44891286,1835.3,1835.1,7.079]
[1746583221497,5.44899738,1835.2,1835.1,7.079]
[1746583222032,5.85987287,1835.3,1835.1,7.079]
[1746583222596,5.98782878,1835.5,1835.1,7.079]
[1746583222826,5.44852803,1835.4,1835.1,7.079]
[1746583223026,5.44872362,1835.3,1835.1,7.079]
[1746583223529,3.0,1835.3,1835.1,7.079]
[1746583223698,8.74897272,1835.4,1835.1,7.079]
[1746583224246,0.30037861,1835.3,1835.1,12.58277516]
[1746583224393,0.30037861,1835.3,1835.1,13.30358372]
[1746583224590,0.30037861,1835.3,1835.1,7.8543]
[1746583224918,0.30037861,1835.3,1835.1,13.30358642]
[1746583225438,0.30037861,1835.3,1835.1,7.8543]
[1746583225736,8.8595919,1835.4,1835.1,7.8543]
[1746583226833,0.30081419,1835.3,1835.1,7.8543]
[1746583227728,8.8595919,1835.4,1835.1,7.8543]
[1746583228126,0.89878288,1835.5,1835.3,5.44859316]
[1746583228426,0.30100778,1835.4,1835.3,5.44869122]
[1746583228624,0.30100778,1835.4,1835.3,12.40369122]
[1746583229191,5.44731805,1835.8,1835.3,6.955]
[1746583229389,5.44765061,1835.7,1835.3,12.40358898]
[1746583229614,5.44765061,1835.7,1835.4,5.4483917]
[1746583229826,5.44737736,1835.8,1835.4,5.4483917]
[1746583230036,0.3011113,1835.7,1835.4,5.4483917]
[1746583230832,0.3011113,1835.7,1835.4,5.44819102]
[1746583231029,7.24894795,1835.8,1835.4,5.44819102]
[1746583232426,0.30100097,1835.7,1835.5,5.44809758]
[1746583232954,0.30100097,1835.7,1835.6,5.44780998]
[1746583233240,3.0,1835.9,1835.6,5.44780998]
[1746583233395,3.0,1835.9,1835.7,5.44738722]
[1746583233600,3.0,1835.9,1835.6,13.32681917]
[1746583233827,0.40445769,1835.9,1835.6,13.32681917]
[1746583234034,5.44662814,1836.0,1835.6,13.32681917]
[1746583234650,4.23455526,1836.2,1835.6,7.8792]
[1746583234850,5.44574354,1836.3,1835.6,7.8792]
[1746583235022,0.30098664,1836.2,1835.8,5.44692955]
[1746583235243,0.30098664,1836.2,1835.9,12.33277577]
[1746583235762,0.30098664,1836.1,1835.9,12.33271798]
[1746583235918,0.30098664,1836.1,1836.0,5.4466045]
[1746583236118,0.30098664,1836.1,1836.0,6.28086743]
[1746583236320,5.4455039,1836.4,1836.0,6.2264045]
[1746583236520,5.44597427,1836.3,1835.9,6.886]
[1746583236770,5.44597427,1836.3,1835.9,12.33287508]
[1746583237065,0.30080795,1836.2,1835.9,12.33287508]
[1746583237854,0.30080795,1836.2,1835.9,6.886]
[1746583238042,5.98480625,1836.5,1836.1,10.89244451]
[1746583238251,3.5395,1836.5,1836.1,5.44611806]
[1746583238423,8.9846939,1836.5,1836.1,5.44611806]
[1746583238749,6.3440086,1836.4,1836.0,5.44648727]
[1746583238918,0.89846939,1836.4,1836.0,5.44636811]
[1746583239261,0.30061994,1836.3,1836.1,5.44632191]
[1746583239446,0.30061994,1836.3,1836.0,5.44643548]
[1746583240064,8.44544421,1836.4,1836.0,5.44643548]
[1746583240428,8.85178405,1836.4,1836.0,5.44643548]
[1746583240770,8.44544421,1836.4,1836.0,5.44643066]
[1746583241066,3.0,1836.4,1836.2,5.4459124]
[1746583241637,0.5395,1836.5,1836.2,5.44584588]
[1746583241864,0.30050384,1836.4,1836.3,5.44573326]
[1746583242272,0.30050384,1836.4,1836.2,6.22766313]
[1746583242655,0.41530797,1836.5,1836.3,5.44559148]
[1746583242971,7.86011785,1836.7,1836.4,5.44543672]
[1746583243169,3.0,1836.6,1836.4,5.44543672]
[1746583243376,8.44490152,1836.6,1836.2,6.22765548]
[1746583243675,9.98043859,1836.5,1836.1,13.669]
[1746583243880,5.44555854,1836.4,1836.1,13.669]
[1746583244045,9.98043859,1836.5,1836.1,19.11530303]
[1746583244369,9.98043859,1836.5,1836.1,6.867]
[1746583244370,5.44589394,1836.3,1836.1,6.867]
[1746583244753,5.44579217,1836.3,1836.1,6.867]
[1746583245341,10.89177723,1836.3,1836.1,6.867]
[1746583245560,5.44579217,1836.3,1836.1,6.867]
[1746583246475,8.98511379,1836.4,1836.1,6.867]
[1746583246988,16.33796769,1836.4,1836.1,6.867]
[1746583247281,0.30063813,1836.3,1836.1,6.867]
[1746583247848,0.30063813,1836.3,1836.1,12.31322382]
[1746583248150,3.0,1836.4,1836.2,5.44591386]
[1746583248357,0.40688321,1836.5,1836.3,5.44573326]
[1746583248550,3.0,1836.6,1836.3,5.44553251]
[1746583248877,0.40288715,1836.8,1836.7,5.44432479]